bitfinex-derivatives/quotes_SOLF0:USTF0_20240815
["timestamp","ask_amount","ask_price","bid_price","bid_amount"]
[1723731172616,41.46,144.57,144.47,42.8213]
[1723731172819,3.4589,144.55,144.52,3.4595]
[1723731173313,3.4591,144.54,144.47,42.8213]
[1723731173515,41.46,144.57,144.47,42.8213]
[1723731173718,0.04407856,144.55,144.47,42.8213]
[1723731174916,3.4592,144.54,144.5,3.4598]
[1723731175110,3.4592,144.54,144.47,42.8213]
[1723731175312,0.04407856,144.55,144.47,42.8213]
[1723731175516,0.04407856,144.55,144.49,41.46]
[1723731175919,3.4585,144.57,144.53,3.4592]
[1723731176316,5.44,144.59,144.51,41.46]
[1723731176518,5.44,144.59,144.55,3.4587]
[1723731176716,5.44,144.59,144.53,44.91257105]
[1723731176918,3.4578,144.6,144.56,3.4584]
[1723731177318,46.9,144.63,144.53,44.95546443]
[1723731177518,46.9,144.63,144.56,3.4584]
[1723731178127,0.05052407,144.57,144.53,41.46]
[1723731178619,0.05052407,144.57,144.56,3.4586]
[1723731179020,3.4575,144.61,144.57,3.4582]
[1723731179219,1.3665,144.62,144.57,3.4582]
[1723731179719,0.04696546,144.58,144.54,4.73053593]
[1723731180122,0.04696546,144.58,144.57,3.4583]
[1723731180327,41.46,144.65,144.55,41.46]
[1723731180623,3.4572,144.62,144.59,3.4578]
[1723731180821,3.4572,144.62,144.59,3.5035371]
[1723731181017,41.46,144.65,144.59,0.0457371]
[1723731181321,41.46,144.63,144.59,0.0457371]
[1723731181519,3.45228215,144.62,144.59,0.0457371]
[1723731181724,0.04790293,144.63,144.59,0.0457371]
[1723731182129,0.04790293,144.63,144.62,3.4571]
[1723731182521,5.44,144.7,144.61,41.46]
[1723731183127,3.4556,144.69,144.65,3.4562]
[1723731183322,5.44,144.7,144.61,44.83759336]
[1723731183527,3.42980636,144.72,144.63,41.46]
[1723731183829,49.4587,144.74,144.63,41.46]
[1723731184525,0.04671485,144.67,144.64,0.04830534]
[1723731184828,0.04671485,144.67,144.66,3.4562]
[1723731185526,49.4587,144.74,144.63,41.46]
[1723731185728,5.44,144.74,144.66,41.46]
[1723731186026,42.7425,144.78,144.68,41.46]
[1723731186229,3.4543,144.74,144.68,41.46]
[1723731186431,48.1825,144.78,144.71,3.455]
[1723731186825,3.4543,144.74,144.71,3.455]
[1723731187227,48.1825,144.78,144.71,3.455]
[1723731187526,3.4541,144.75,144.73,0.05075244]
[1723731187730,0.04436089,144.76,144.73,0.05075244]
[1723731188032,3.454,144.75,144.73,0.05075244]
[1723731188232,0.04436089,144.76,144.73,0.05075244]
[1723731188434,3.4543,144.74,144.73,0.05075244]
[1723731189238,3.4542,144.75,144.73,0.05075244]
[1723731189628,0.04436089,144.76,144.73,0.05075244]
[1723731189824,3.4541,144.75,144.73,0.05075244]
[1723731190230,0.04436089,144.76,144.73,0.05075244]
[1723731190638,41.46,144.74,144.73,0.05075244]
[1723731190932,44.9143,144.74,144.73,0.05075244]
[1723731191132,44.9715001,144.74,144.64,1.3414]
[1723731191337,3.4556,144.69,144.66,3.456]
[1723731191536,41.46,144.71,144.64,1.3414]
[1723731191941,1.3224,144.72,144.64,1.3414]
[1723731192435,4.7772,144.72,144.69,3.4553]
[1723731192739,1.3224,144.72,144.69,3.4553]
[1723731192932,1.3224,144.72,144.7,3.4552]
[1723731193133,5.44,144.73,144.65,41.46]
[1723731193341,0.05297077,144.69,144.67,0.04896396]
[1723731193537,0.05297077,144.69,144.68,3.4557]
[1723731194439,5.44,144.75,144.72,3.4546]
[1723731194630,8.8941,144.75,144.72,3.4546]
[1723731194830,5.44,144.75,144.72,3.4546]
[1723731195031,5.44,144.75,144.73,3.4544]
[1723731195238,48.1755,144.79,144.7,41.46]
[1723731195434,1.2755,144.79,144.7,42.7188]
[1723731195640,46.9,144.81,144.7,42.7188]
[1723731195839,3.4532,144.79,144.72,41.46]
[1723731196135,2.5374,144.83,144.77,3.4534]
[1723731196543,2.5374,144.83,144.76,3.4536]
[1723731196736,41.46,144.79,144.73,0.04922942]
[1723731196933,41.46,144.77,144.73,0.04922942]
[1723731197144,41.46,144.77,144.71,3.4547]
[1723731197438,3.4541,144.75,144.7,1.2588]
[1723731197739,3.454,144.76,144.72,3.4546]
[1723731197935,41.46,144.77,144.7,1.2588]
[1723731198135,41.46,144.77,144.7,3.4552]
[1723731198333,0.04459466,144.74,144.71,0.05035341]
[1723731198734,0.04459466,144.74,144.72,3.4547]
[1723731198936,0.04459466,144.74,144.71,0.05035341]
[1723731199342,0.04459466,144.74,144.73,3.4545]
[1723731200141,5.44,144.8,144.72,41.46]
[1723731200341,44.0714,144.83,144.72,41.46]
[1723731200342,3.4527,144.81,144.72,41.46]
[1723731200641,44.0714,144.83,144.76,3.4536]
[1723731201448,0.04527451,144.81,144.78,0.04560738]
[1723731201848,3.4531,144.79,144.78,0.04560738]
[1723731204751,3.453,144.8,144.78,0.04560738]
[1723731205951,0.04527451,144.81,144.78,0.04560738]
[1723731205952,3.49797451,144.81,144.78,0.04560738]
[1723731206453,0.04527451,144.81,144.78,0.04560738]
[1723731207553,3.49797451,144.81,144.78,3.49880738]
[1723731207950,0.04527451,144.81,144.78,0.04560738]
[1723731208548,3.49797451,144.81,144.78,3.49870738]
[1723731209949,0.04527451,144.81,144.79,3.453]
[1723731210153,0.04527451,144.81,144.78,0.04560738]
[1723731210454,0.04527451,144.81,144.78,41.50560738]
[1723731210655,0.04527451,144.81,144.79,3.4529]
[1723731211059,0.04527451,144.81,144.78,0.04560738]
[1723731211257,0.04527451,144.81,144.8,3.4528]
[1723731212067,0.04527451,144.81,144.78,0.04560738]
[1723731212857,3.4531,144.79,144.78,0.04560738]
[1723731213558,5.44,144.8,144.78,0.04560738]
[1723731214856,5.44,144.8,144.78,3.49890738]
[1723731215056,0.04527451,144.81,144.78,0.04560738]
[1723731215663,0.04527451,144.81,144.8,3.4528]
[1723731216358,0.04527451,144.81,144.79,3.4529]
[1723731216559,0.04527451,144.81,144.78,0.04560738]
[1723731216760,3.49797451,144.81,144.78,0.04560738]
[1723731216956,3.49797451,144.81,144.78,3.49880738]
[1723731217762,0.04527451,144.81,144.78,3.49880738]
[1723731218158,0.04527451,144.81,144.79,3.453]
[1723731218559,3.49787451,144.81,144.78,0.04560738]
[1723731218960,0.04527451,144.81,144.78,3.49880738]
[1723731219166,0.04527451,144.81,144.78,0.04560738]
[1723731219864,0.04527451,144.81,144.79,3.4529]
[1723731220364,0.04527451,144.81,144.78,0.04560738]
[1723731221360,0.04527451,144.81,144.8,3.4528]
[1723731222567,0.04527451,144.81,144.78,0.04560738]
[1723731222956,0.04527451,144.81,144.8,3.4528]
[1723731224165,0.04527451,144.81,144.78,0.04560738]
[1723731225957,3.49797451,144.81,144.78,3.49890738]
[1723731226162,3.49797451,144.81,144.78,0.04560738]
[1723731226961,0.04527451,144.81,144.78,0.04560738]
[1723731227672,0.04527451,144.81,144.79,3.453]
[1723731228670,3.49787451,144.81,144.78,0.04560738]
[1723731228873,0.04527451,144.81,144.78,0.04560738]
[1723731230368,0.04527451,144.81,144.78,41.50560738]
[1723731230568,0.04527451,144.81,144.8,3.4528]
[1723731233476,0.04527451,144.81,144.8,44.9128]
[1723731236867,0.04527451,144.81,144.78,3.49910738]
[1723731237075,0.04527451,144.81,144.78,0.04560738]
[1723731237874,0.04527451,144.81,144.79,3.4533]
[1723731239269,0.04527451,144.81,144.78,0.04560738]
[1723731239472,3.50046644,144.81,144.78,0.04560738]
[1723731239675,3.50046644,144.81,144.7,42.783]
[1723731239676,2.5011,144.8,144.7,42.783]
[1723731239875,36.9853,144.8,144.71,33.17]
[1723731240181,3.46453974,144.79,144.71,33.17]
[1723731240379,33.17,144.78,144.69,33.17]
[1723731240780,3.48663766,144.77,144.69,33.17]
[1723731240980,5.42,144.76,144.69,33.17]
[1723731241482,3.4548,144.74,144.72,0.0523289]
[1723731241674,0.0482136,144.75,144.72,0.0523289]
[1723731242074,3.5028136,144.75,144.72,0.0523289]
[1723731242275,0.0482136,144.75,144.72,0.0523289]
[1723731242890,41.48,144.74,144.63,48.1409]
[1723731243078,3.4557,144.7,144.63,48.1409]
[1723731243371,2.5957,144.73,144.63,42.7209]
[1723731243577,5.42,144.76,144.72,3.455]
[1723731243578,3.4542,144.76,144.72,3.455]
[1723731243773,5.42,144.78,144.72,41.48]
[1723731244081,2.6232,144.8,144.74,41.48]
[1723731244385,5.42,144.81,144.74,41.48]
[1723731244579,8.92929316,144.81,144.74,41.48]
[1723731244773,0.04412141,144.75,144.74,44.9345]
[1723731244987,0.04412141,144.75,144.74,3.4545]
[1723731245378,3.4535,144.79,144.75,3.4543]
[1723731245885,0.0513614,144.76,144.73,0.04879654]
[1723731246072,0.0513614,144.76,144.75,3.4544]
[1723731246679,0.0513614,144.76,144.74,3.4544]
[1723731246977,0.0513614,144.76,144.73,0.04879654]
[1723731247474,3.4546,144.74,144.73,0.04879654]
[1723731248185,3.4552,144.72,144.65,5.42]
[1723731248685,3.4552,144.72,144.68,3.4559]
[1723731248874,3.4553,144.71,144.68,3.4559]
[1723731249079,3.4553,144.71,144.64,41.48]
[1723731249385,0.04556378,144.69,144.66,41.48]
[1723731249979,0.04556378,144.69,144.63,41.48]
[1723731250580,3.50156378,144.69,144.63,41.48]
[1723731251379,3.456,144.68,144.64,3.4569]
[1723731251585,0.04556378,144.69,144.62,1.2799]
[1723731251786,0.04556378,144.69,144.61,48.258]
[1723731251981,3.4563,144.67,144.63,3.457]
[1723731252187,41.52556378,144.69,144.59,42.7348]
[1723731252389,3.4566,144.66,144.59,42.7348]
[1723731252585,3.4566,144.66,144.62,3.4573]
[1723731252890,3.4564,144.67,144.59,42.7348]
[1723731253379,3.4564,144.67,144.63,3.4571]
[1723731253786,0.04798759,144.64,144.63,3.4571]
[1723731254686,0.04798759,144.64,144.59,42.7348]
[1723731254992,0.04798759,144.64,144.62,3.4573]
[1723731255384,0.04798759,144.64,144.61,3.4576]
[1723731255590,0.04798759,144.64,144.59,42.7348]
[1723731255897,0.04798759,144.64,144.61,3.4576]
[1723731256486,0.04798759,144.64,144.59,42.7348]
[1723731256890,0.04798759,144.64,144.62,3.4573]
[1723731257889,0.04798759,144.64,144.61,3.4576]
[1723731258285,0.04798759,144.64,144.62,3.4574]
[1723731259291,3.50508759,144.64,144.61,3.4576]
[1723731259993,0.04798759,144.64,144.61,3.4576]
[1723731260589,3.50498759,144.64,144.61,3.4576]
[1723731260899,0.04798759,144.64,144.6,3.4578]
[1723731261391,0.04798759,144.64,144.57,46.9]
[1723731261791,0.04798759,144.64,144.61,3.4576]
[1723731262594,0.04798759,144.64,144.57,46.9]
[1723731262803,0.04798759,144.64,144.61,41.48]
[1723731262995,3.45024187,144.73,144.63,41.48]
[1723731262996,5.42,144.71,144.63,41.48]
[1723731263302,3.4558,144.69,144.65,3.4566]
[1723731263487,5.42,144.71,144.63,41.48]
[1723731263687,3.4561,144.68,144.64,3.4568]
[1723731263885,5.42,144.71,144.63,41.48]
[1723731264299,3.4554,144.71,144.65,41.48]
[1723731264595,0.05003259,144.68,144.66,0.04798759]
[1723731264986,3.4558,144.69,144.66,0.04798759]
[1723731265386,0.04401886,144.68,144.66,3.50448759]
[1723731265786,0.04401886,144.68,144.66,0.04798759]
[1723731265990,3.50011886,144.68,144.66,0.04798759]
[1723731266901,0.04401886,144.68,144.66,0.04798759]
[1723731268699,3.50021886,144.68,144.66,3.50438759]
[1723731270409,3.50021886,144.68,144.66,0.04798759]
[1723731271408,3.4563,144.67,144.66,0.04798759]
[1723731271599,3.4563,144.67,144.46,3.17115869]
[1723731271600,1.2753,144.67,144.56,41.48]
[1723731271899,3.4571,144.64,144.56,44.98006913]
[1723731272195,44.0809,144.66,144.56,3.50006913]
[1723731272502,4.7316,144.67,144.6,41.48]
[1723731273002,0.05229269,144.62,144.58,41.48]
[1723731273396,0.05229269,144.62,144.61,3.4577]
[1723731273593,1.2753,144.67,144.58,41.48]
[1723731273895,42.7553,144.67,144.6,3.4578]
[1723731274503,0.05016144,144.63,144.6,3.4578]
[1723731274701,0.05016144,144.63,144.59,3.4581]
[1723731275502,0.05016144,144.63,144.58,3.4583]
[1723731275701,0.05016144,144.63,144.55,1.2475]
[1723731276399,3.4576,144.62,144.58,3.4583]
[1723731277205,0.05016144,144.63,144.56,41.48]
[1723731277505,5.42,144.64,144.56,41.48]
[1723731277907,0.0471511,144.61,144.56,41.48]
[1723731278799,0.0471511,144.61,144.58,3.4583]
[1723731279505,0.0471511,144.61,144.55,1.2475]
[1723731280105,0.0471511,144.61,144.58,3.4584]
[1723731280607,3.5048511,144.61,144.58,3.4584]
[1723731280805,0.0471511,144.61,144.58,3.4584]
[1723731282707,0.0471511,144.61,144.56,3.4587]
[1723731283206,3.4583,144.59,144.56,3.4587]
[1723731283604,41.48,144.62,144.55,3.4589]
[1723731283605,0.04494546,144.6,144.55,3.4589]
[1723731283807,3.4583,144.59,144.55,3.4589]
[1723731284003,0.04494546,144.6,144.56,3.4589]
[1723731284305,71.14770752,144.69,144.56,41.48]
[1723731284499,71.14770752,144.69,144.61,3.4576]
[1723731284500,48.1324,144.68,144.61,3.4576]
[1723731284703,3.47406639,144.65,144.57,1.3569]
[1723731285110,0.05114847,144.59,144.58,44.9384]
[1723731285405,3.4569,144.65,144.58,41.48]
[1723731286209,3.457,144.64,144.61,3.4575]
[1723731286411,3.457,144.64,144.57,1.3569]
[1723731286412,41.48,144.67,144.57,1.3569]
[1723731286608,0.04597712,144.63,144.6,3.4578]
[1723731286805,0.04597712,144.63,144.6,0.04529428]
[1723731287108,0.04597712,144.63,144.61,3.4575]
[1723731287309,0.04597712,144.63,144.6,0.04529428]
[1723731287814,0.04597712,144.63,144.61,3.4577]
[1723731288416,0.04597712,144.63,144.6,3.50309428]
[1723731289314,0.04597712,144.63,144.61,3.4577]
[1723731289618,3.50317712,144.63,144.6,0.04529428]
[1723731289916,0.04597712,144.63,144.61,3.4576]
[1723731290719,3.50317712,144.63,144.6,3.50309428]
[1723731291216,0.04597712,144.63,144.61,3.4577]
[1723731291417,0.04597712,144.63,144.6,0.04529428]
[1723731292514,0.04597712,144.63,144.61,3.4575]
[1723731293117,0.04597712,144.63,144.62,3.4575]
[1723731293616,0.04597712,144.63,144.6,0.04529428]
[1723731293617,3.4577,144.61,144.6,0.04529428]
[1723731293817,3.4577,144.61,144.4,20.75260405]
[1723731293818,41.48,144.61,144.52,1.2699]
[1723731294018,33.22,144.58,144.52,1.2699]
[1723731294321,3.4588,144.57,144.52,1.2699]
[1723731294618,33.22,144.58,144.49,38.64]
[1723731295122,3.4589,144.56,144.49,42.09941086]
[1723731295518,0.05062994,144.55,144.52,3.4597]
[1723731295822,33.22,144.54,144.48,1.3151]
[1723731296018,33.22,144.54,144.48,4.7758]
[1723731296019,41.5,144.54,144.48,4.7758]
[1723731296322,3.4598,144.53,144.48,4.7758]
[1723731296719,0.05062994,144.55,144.49,3.4604]
[1723731297220,0.05062994,144.55,144.5,3.4601]
[1723731297520,5.42,144.55,144.48,1.3151]
[1723731297720,8.8793,144.55,144.5,3.4602]
[1723731298022,0.05132166,144.54,144.5,3.4602]
[1723731298224,0.05132166,144.54,144.48,1.3151]
[1723731298417,3.51082166,144.54,144.49,3.4606]
[1723731298620,3.51082166,144.54,144.48,1.3151]
[1723731298820,3.51082166,144.54,144.49,3.4605]
[1723731299417,3.51082166,144.54,144.5,3.4603]
[1723731299921,3.51082166,144.54,144.49,3.4605]
[1723731300117,0.05132166,144.54,144.48,1.3151]
[1723731300522,0.05132166,144.54,144.48,46.30274791]
[1723731300724,3.51072166,144.54,144.48,42.8151]
[1723731301023,0.05132166,144.54,144.48,42.8151]
[1723731301617,0.05132166,144.54,144.48,46.34609916]
[1723731302028,0.05132166,144.54,144.51,3.4599]
[1723731302819,0.05132166,144.54,144.49,3.43032106]
[1723731303524,0.05132166,144.54,144.48,42.8151]
[1723731304221,0.05132166,144.54,144.51,3.4599]
[1723731304925,3.51072166,144.54,144.48,42.8151]
[1723731305223,0.05132166,144.54,144.48,1.3151]
[1723731305427,3.4596,144.53,144.48,1.3151]
[1723731305631,0.05132166,144.54,144.48,1.3151]
[1723731305823,3.51092166,144.54,144.5,3.4602]
[1723731306226,0.05132166,144.54,144.5,3.4602]
[1723731306924,0.05132166,144.54,144.48,1.3151]
[1723731306925,3.51082166,144.54,144.51,3.4601]
[1723731307225,0.05132166,144.54,144.5,41.5]
[1723731307426,0.05132166,144.54,144.53,3.4596]
[1723731307927,0.05132166,144.54,144.48,6.7351]
[1723731308633,0.05132166,144.54,144.48,10.25730838]
[1723731309233,0.05132166,144.54,144.48,6.7351]
[1723731309629,3.46,144.52,144.47,1.3561]
[1723731309835,41.55132166,144.54,144.44,8.13]
[1723731310029,46.97132166,144.54,144.44,9.384]
[1723731310329,3.4601,144.51,144.44,9.384]
[1723731310531,41.5,144.52,144.44,9.384]
[1723731310733,3.4605,144.5,144.46,3.4611]
[1723731311223,3.4605,144.5,144.44,9.384]
[1723731311421,3.4606,144.49,144.44,9.384]
[1723731311731,3.5126177,144.49,144.44,9.384]
[1723731311928,0.0520177,144.49,144.45,41.5]
[1723731312533,0.0520177,144.49,144.48,3.4608]
[1723731312737,0.0520177,144.49,144.45,41.5]
[1723731312926,0.0520177,144.49,144.48,3.4608]
[1723731313529,46.92,144.56,144.5,3.4603]
[1723731314029,46.92,144.56,144.47,41.5]
[1723731314226,46.92,144.56,144.45,41.5]
[1723731314536,46.92,144.56,144.44,3.964]
[1723731314537,41.5,144.52,144.44,3.964]
[1723731314729,41.5,144.52,144.44,2.5979]
[1723731314730,3.4604,144.5,144.44,2.5979]
[1723731314927,41.5,144.52,144.49,0.04546129]
[1723731315134,41.54446595,144.52,144.49,0.04546129]
[1723731315434,3.4603,144.5,144.49,0.04546129]
[1723731315733,3.461,144.48,144.45,3.4614]
[1723731315933,41.5,144.5,144.45,3.4614]
[1723731316128,41.5,144.5,144.48,0.04615144]
[1723731316526,3.4606,144.49,144.48,0.04615144]
[1723731316931,5.4640566,144.51,144.48,0.04615144]
[1723731317325,0.0440566,144.51,144.48,0.04615144]
[1723731317636,0.0440566,144.51,144.5,3.4603]
[1723731318633,3.4592,144.55,144.52,3.4596]
[1723731318937,5.42,144.56,144.52,3.4596]
[1723731319234,3.4593,144.55,144.52,3.4596]
[1723731319630,38.65,144.59,144.5,33.23]
[1723731322438,44.9671,144.64,144.6,3.4577]
[1723731322627,0.04740534,144.62,144.6,3.4577]
[1723731323036,0.04740534,144.62,144.61,3.4577]
[1723731323639,0.04740534,144.62,144.61,20.97818432]
[1723731323834,0.04740534,144.62,144.61,3.4577]
[1723731324433,0.04740534,144.62,144.61,20.9789703]
[1723731326036,0.04740534,144.62,144.6,3.4578]
[1723731326435,0.04740534,144.62,144.58,0.04834629]
[1723731326636,0.04740534,144.62,144.6,3.4577]
[1723731326838,3.4577,144.61,144.58,0.04834629]
[1723731327029,0.04740534,144.62,144.58,0.04834629]
[1723731327233,41.55740534,144.62,144.58,0.04834629]
[1723731327434,3.4579,144.61,144.58,0.04834629]
[1723731327737,41.55740534,144.62,144.58,0.04834629]
[1723731327933,3.50500534,144.62,144.58,0.04834629]
[1723731328135,0.04740534,144.62,144.59,3.458]
[1723731328541,3.50500534,144.62,144.59,3.458]
[1723731329338,0.04740534,144.62,144.59,3.44778699]
[1723731329634,0.04740534,144.62,144.61,3.4577]
[1723731330036,0.04740534,144.62,144.61,20.9734855]
[1723731330538,3.4564,144.67,144.64,3.4569]
[1723731330943,3.4565,144.66,144.63,3.4571]
[1723731331338,3.4563,144.67,144.62,41.51]
[1723731331533,3.4563,144.67,144.64,3.4569]
[1723731332142,0.0468144,144.66,144.63,0.05133236]
[1723731332445,41.5568144,144.66,144.63,0.05133236]
[1723731332842,2.5473,144.65,144.57,17.51912493]
[1723731333039,2.5473,144.65,144.58,17.51912493]
[1723731333342,2.5473,144.65,144.58,3.4583]
[1723731333343,3.4579,144.61,144.58,3.4583]
[1723731333543,41.51,144.64,144.55,5.42]
[1723731333845,41.51,144.57,144.48,2.6794]
[1723731334043,41.51,144.59,144.49,17.52985285]
[1723731334241,5.4,144.58,144.5,17.52985285]
[1723731334441,5.4,144.58,144.52,3.4598]
[1723731334442,3.459,144.56,144.52,3.4598]
[1723731334639,3.459,144.56,144.53,17.52985285]
[1723731334846,3.459,144.56,144.54,17.52985285]
[1723731335042,3.459,144.56,144.53,3.4595]
[1723731335237,3.4587,144.57,144.54,17.52498522]
[1723731335446,41.51,144.59,144.55,17.52153854]
[1723731335643,41.51,144.59,144.48,47.72125308]
[1723731335644,5.4,144.58,144.48,47.72125308]
[1723731335842,5.4,144.58,144.53,0.04358844]
[1723731336039,41.51,144.59,144.54,17.52039762]
[1723731336243,1.314,144.6,144.55,17.52039762]
[1723731336444,5.42,144.59,144.56,17.52039762]
[1723731336643,1.314,144.6,144.53,41.55358844]
[1723731336846,5.42,144.61,144.54,17.50794989]
[1723731337042,3.4583,144.59,144.56,3.4587]
[1723731337248,5.42,144.61,144.53,41.51]
[1723731337443,5.42,144.61,144.54,17.50099201]
[1723731337647,0.04588091,144.58,144.55,17.50099201]
[1723731337848,0.04588091,144.58,144.56,17.50099201]
[1723731338151,0.04588091,144.58,144.57,17.50099201]
[1723731338655,3.50428091,144.58,144.57,17.50099201]
[1723731339254,3.4587,144.57,144.56,0.05284749]
[1723731339450,41.51,144.57,144.56,17.51158333]
[1723731339759,42.7908,144.57,144.48,2.6794]
[1723731339949,3.4595,144.54,144.51,3.4601]
[1723731340256,3.4595,144.54,144.52,17.51593512]
[1723731340458,5.42,144.56,144.53,17.51593512]
[1723731340653,5.42,144.56,144.54,17.51593512]
[1723731340852,5.42,144.56,144.55,17.51593512]
[1723731341255,8.8789,144.56,144.55,17.51593512]
[1723731341553,3.4589,144.56,144.55,17.51593512]
[1723731343358,3.4594,144.54,144.52,0.05299809]
[1723731343556,3.4594,144.54,144.53,17.51665668]
[1723731347963,3.4594,144.54,144.53,15.46295668]
[1723731348259,33.24,144.55,144.52,0.05299809]
[1723731348260,3.4596,144.53,144.52,0.05299809]
[1723731348464,33.24,144.53,144.42,42.05146079]
[1723731348661,5.42,144.52,144.42,38.66]
[1723731348967,33.24,144.5,144.42,33.24]
[1723731349158,5.42,144.52,144.42,36.72141997]
[1723731349354,38.66,144.52,144.42,36.72141997]
[1723731349558,33.24,144.52,144.42,36.72141997]
[1723731349765,5.4,144.51,144.45,3.4614]
[1723731350266,5.4,144.51,144.46,0.03823755]
[1723731350563,3.4612,144.47,144.46,0.03823755]
[1723731353069,45.07981941,144.48,144.36,41.51]
[1723731353372,41.51,144.45,144.38,3.463]
[1723731353563,3.4624,144.42,144.34,45.4032]
[1723731353758,5.4,144.44,144.34,45.4032]
[1723731353965,3.4626,144.41,144.38,3.4632]
[1723731354267,0.04561848,144.4,144.38,3.4632]
[1723731354470,0.04561848,144.4,144.39,3.463]
[1723731354963,0.04561848,144.4,144.34,45.4032]
[1723731355170,0.04561848,144.4,144.36,41.51]
[1723731355366,45.01654296,144.47,144.38,41.51]
[1723731355562,3.4617,144.45,144.41,3.4623]
[1723731355772,41.51,144.49,144.4,41.51]
[1723731355972,3.4612,144.47,144.44,3.4617]
[1723731356473,5.4,144.49,144.41,2.6191]
[1723731356682,3.4614,144.46,144.41,2.6191]
[1723731356975,0.05139864,144.47,144.44,0.04506321]
[1723731357869,3.4615,144.45,144.44,0.04506321]
[1723731358273,0.05139864,144.47,144.44,0.04506321]
[1723731358868,3.4615,144.45,144.44,0.04506321]
[1723731361379,0.05139864,144.47,144.44,0.04506321]
[1723731362279,41.56139864,144.47,144.44,0.04506321]
[1723731362480,3.4615,144.45,144.44,0.04506321]
[1723731363783,3.4614,144.46,144.44,0.04506321]
[1723731364079,41.56139864,144.47,144.44,0.04506321]
[1723731364276,0.05139864,144.47,144.44,0.04506321]
[1723731364583,46.96139864,144.47,144.44,0.04506321]
[1723731364881,3.4615,144.45,144.44,0.04506321]
[1723731365874,44.9715,144.45,144.37,1.3401]
[1723731366081,41.51,144.45,144.37,1.3401]
[1723731366585,5.4,144.47,144.37,1.3401]
[1723731367480,0.04763508,144.43,144.37,1.3401]
[1723731367681,3.50963508,144.43,144.4,3.4626]
[1723731367984,0.04763508,144.43,144.37,1.3401]
[1723731368185,3.4624,144.42,144.39,3.4628]
[1723731369080,0.04763508,144.43,144.37,1.3401]
[1723731369283,3.50943508,144.43,144.39,3.4625]
[1723731369782,0.04763508,144.43,144.37,1.3401]
[1723731370282,0.04763508,144.43,144.39,3.4624]
[1723731370682,0.04763508,144.43,144.37,1.3401]
[1723731370884,0.04763508,144.43,144.4,41.51]
[1723731371081,70.85069998,144.5,144.41,4.80155789]
[1723731371280,5.4,144.49,144.41,1.2884]
[1723731371784,3.4611,144.46,144.42,3.4618]
[1723731371988,5.4,144.49,144.41,1.2884]
[1723731372279,3.4608,144.47,144.44,3.4614]
[1723731372487,5.4,144.49,144.44,3.4614]
[1723731372791,0.0494712,144.45,144.43,0.04789218]
[1723731373281,0.0494712,144.45,144.44,3.4614]
[1723731373482,3.4609,144.47,144.44,3.4614]
[1723731373879,0.0520455,144.46,144.44,3.4614]
[1723731374077,3.4614,144.44,144.43,0.04789218]
[1723731374383,36.6814,144.44,144.43,0.04789218]
[1723731374578,42.0814,144.44,144.43,0.04789218]
[1723731374780,3.4626,144.4,144.34,39.8983]
[1723731374976,3.4626,144.4,144.35,1.2974]
[1723731375181,3.4626,144.4,144.37,3.4631]
[1723731375386,38.62,144.44,144.35,1.2974]
[1723731375582,33.22,144.42,144.35,1.2974]
[1723731375884,3.4625,144.4,144.36,3.4631]
[1723731376186,0.04691138,144.4,144.36,3.4631]
[1723731376389,0.04691138,144.4,144.35,4.7609]
[1723731376783,0.04691138,144.4,144.35,1.2974]
[1723731376980,3.4628,144.39,144.35,1.2974]
[1723731377282,0.04691138,144.4,144.31,1.3347]
[1723731377283,33.26691138,144.4,144.31,1.3347]
[1723731377493,3.4631,144.38,144.34,3.4637]
[1723731377982,5.4,144.39,144.34,3.4637]
[1723731378287,0.0481762,144.37,144.32,1.3206]
[1723731378585,3.5113762,144.37,144.32,1.3206]
[1723731379386,3.5113762,144.37,144.33,3.464]
[1723731379588,3.5113762,144.37,144.32,1.3206]